bitfinex-derivatives/quotes_ETHF0:USTF0_20250902
["timestamp","ask_amount","ask_price","bid_price","bid_amount"]
[1756811548858,0.90902451,4379.9,4379.8,3.4378]
[1756811549054,0.90902451,4379.9,4379.8,3.6054]
[1756811549249,0.90902451,4379.9,4379.8,3.773]
[1756811550658,0.90902451,4379.9,4379.8,3.543]
[1756811550864,0.3129,4379.8,4379.6,0.23]
[1756811551166,0.90902451,4379.7,4379.6,0.23]
[1756811551560,0.90902451,4379.7,4379.6,0.3976]
[1756811553353,0.90902451,4379.7,4379.6,0.5652]
[1756811554065,0.70022451,4379.7,4379.6,0.3352]
[1756811554366,0.7246,4379.4,4379.3,3.2078]
[1756811554566,0.90902451,4379.4,4379.3,3.4378]
[1756811554865,0.90902451,4379.4,4379.3,3.6054]
[1756811555660,0.90902451,4379.4,4379.3,3.773]
[1756811558064,0.7246,4379.4,4379.3,3.773]
[1756811558369,3.3219,4380.1,4379.3,3.773]
[1756811558370,0.1141,4380.1,4379.3,3.773]
[1756811558567,0.49691721,4380.0,4379.9,0.4389]
[1756811558766,1.02411721,4380.0,4379.9,0.3976]
[1756811558963,1.02411721,4380.0,4379.9,0.23]
[1756811559763,1.02411721,4380.0,4379.8,3.2078]
[1756811560064,0.8408,4380.0,4379.9,0.23]
[1756811560265,1.02479254,4380.0,4379.9,0.23]
[1756811561358,0.3136,4379.9,4379.8,3.2078]
[1756811561558,0.89809254,4379.9,4379.8,3.4378]
[1756811561769,0.89809254,4379.9,4379.8,3.3733]
[1756811561968,0.89809254,4379.9,4379.8,3.6033]
[1756811562164,0.89809254,4379.9,4379.8,3.3733]
[1756811562370,0.89809254,4379.9,4379.8,3.4378]
[1756811563070,0.89809254,4379.9,4379.8,3.6033]
[1756811563368,0.89809254,4379.9,4379.8,3.2078]
[1756811563568,0.89809254,4379.9,4379.8,3.4378]
[1756811564071,0.89809254,4379.9,4379.8,3.6033]
[1756811565173,0.89809254,4379.9,4379.8,3.7688]
[1756811566071,0.49759254,4379.9,4379.8,3.8722]
[1756811566268,0.58449254,4379.9,4379.8,3.2078]
[1756811566473,0.89809254,4379.9,4379.8,3.7688]
[1756811567675,0.49759254,4379.9,4379.8,3.8722]
[1756811567871,0.70369254,4379.9,4379.8,3.7688]
[1756811568376,0.49759254,4379.9,4379.8,3.8722]
[1756811568568,0.70369254,4379.9,4379.8,3.8722]
[1756811568770,0.89820036,4379.9,4379.8,3.5388]
[1756811568971,0.70380036,4379.9,4379.8,3.7698]
[1756811569269,0.7038555,4379.9,4379.8,3.7698]
[1756811569673,0.4977555,4379.9,4379.8,3.8732]
[1756811570174,0.7038555,4379.9,4379.8,3.7698]
[1756811570370,0.4977555,4379.9,4379.8,3.8732]
[1756811571272,0.1841555,4379.9,4379.8,3.8732]
[1756811572579,0.1841555,4379.9,4379.8,8.10152]
[1756811572778,0.1841555,4379.9,4379.8,7.8732]
[1756811573177,0.1841555,4379.9,4379.8,48.6732]
[1756811573481,0.1841555,4379.9,4379.8,48.4422]
[1756811573678,0.1841555,4379.9,4379.8,48.6732]
[1756811574880,0.1841555,4379.9,4379.8,44.6722]
[1756811578881,0.1841555,4379.9,4379.8,44.6732]
[1756811579379,0.18505493,4380.0,4379.8,44.5698]
[1756811579679,0.18505493,4379.9,4379.8,44.6732]
[1756811579881,0.18504723,4379.9,4379.8,44.6732]
[1756811580376,0.49864723,4379.9,4379.8,44.6732]
[1756811580576,0.49864723,4379.9,4379.8,44.3388]
[1756811580777,0.49864723,4379.9,4379.8,44.6732]
[1756811580985,0.49864723,4379.9,4379.8,44.4422]
[1756811581284,0.49864723,4379.9,4379.8,44.5698]
[1756811581479,0.49864723,4379.9,4379.8,44.6732]
[1756811581675,0.18504723,4379.9,4379.8,44.6732]
[1756811581984,0.1141,4380.1,4380.0,0.3354]
[1756811582180,0.18503143,4380.1,4380.0,0.6712]
[1756811583477,0.18503143,4380.1,4380.0,0.4402]
[1756811583680,0.49863143,4380.1,4380.0,0.6712]
[1756811583881,0.18503143,4380.1,4380.0,0.6712]
[1756811584282,0.1141,4380.3,4380.0,0.6712]
[1756811584479,0.18497481,4380.2,4380.1,0.1048]
[1756811584685,0.18497481,4380.2,4380.1,0.4402]
[1756811585185,0.89907481,4380.2,4380.1,0.5664]
[1756811586085,0.70467481,4380.2,4380.1,0.5664]
[1756811586287,0.70467481,4380.2,4380.1,0.6712]
[1756811586482,0.49857481,4380.2,4380.1,0.6712]
[1756811586983,0.18497481,4380.2,4380.1,0.6712]
[1756811587182,0.1141,4380.3,4380.1,0.6712]
[1756811587388,0.1141,4380.3,4380.2,0.4402]
[1756811588085,0.4277,4380.3,4380.2,0.4402]
[1756811588284,0.6338,4380.3,4380.2,0.3354]
[1756811588487,0.4277,4380.3,4380.2,0.6712]
[1756811588686,0.6338,4380.3,4380.2,0.5664]
[1756811588888,0.8282,4380.3,4380.2,0.3354]
[1756811589087,0.8282,4380.3,4380.2,0.5664]
[1756811589088,1.01321639,4380.3,4380.2,0.5664]
[1756811589589,1.01321639,4380.3,4380.2,0.3987]
[1756811589885,1.01321639,4380.3,4380.2,0.231]
[1756811590085,1.01321639,4380.3,4380.2,0.3983]
[1756811590284,1.01321639,4380.3,4380.2,0.231]
[1756811591289,0.69961639,4380.3,4379.8,3.24753562]
[1756811591484,0.4784,4379.9,4379.8,3.58213562]
[1756811591681,0.6688,4379.9,4379.8,3.2078]
[1756811591989,0.85388804,4379.9,4379.8,3.4388]
[1756811592485,0.85388804,4379.9,4379.8,3.3751]
[1756811592785,0.85388804,4379.9,4379.8,3.2078]
[1756811592990,0.85388804,4379.9,4379.8,3.4388]
[1756811593986,0.85388804,4379.9,4379.8,3.2078]
[1756811594190,0.85388804,4379.9,4379.8,3.4388]
[1756811594588,4.85388804,4379.9,4379.3,3.2078]
[1756811594795,0.4784,4378.7,4378.6,0.3346]
[1756811594984,0.4784,4378.7,4378.6,3.7734]
[1756811595185,0.116,4379.5,4378.6,44.678]
[1756811595390,0.6688,4379.3,4379.2,3.2078]
[1756811595692,0.85389817,4379.3,4379.2,3.4388]
[1756811596095,0.85378003,4379.3,4379.2,3.4388]
[1756811596696,0.85378003,4379.3,4379.2,3.7734]
[1756811597091,0.85378003,4379.3,4379.2,3.6061]
[1756811597597,0.85378003,4379.3,4379.2,3.4388]
[1756811598891,0.85378003,4379.3,4379.2,0.231]
[1756811599398,0.284,4379.2,4378.7,3.2078]
[1756811599598,0.284,4378.8,4378.7,3.647]
[1756811599800,0.284,4378.8,4378.7,3.878]
[1756811603699,0.284,4378.7,4378.2,3.2078]
[1756811603998,0.284,4378.7,4378.6,0.4392]
[1756811604200,0.66301736,4378.7,4378.6,0.3346]
[1756811604394,0.4784,4378.7,4378.6,0.5656]
[1756811605205,0.4784,4378.7,4378.6,0.4392]
[1756811605407,0.4784,4378.7,4378.6,0.6702]
[1756811605706,0.284,4378.7,4378.6,0.6702]
[1756811608205,0.3848,4378.7,4378.2,44.0078]
[1756811608403,0.3848,4378.4,4378.3,0.3983]
[1756811608705,0.6688,4378.4,4378.3,0.5656]
[1756811608907,0.6688,4378.4,4378.3,0.3346]
[1756811609399,0.6688,4378.4,4378.3,0.5656]
[1756811610603,0.284,4378.3,4378.2,44.0078]
[1756811611205,0.284,4378.3,4378.2,44.2388]
[1756811611402,0.284,4378.3,4378.2,44.0078]
[1756811611599,0.284,4378.3,4378.2,44.2388]
[1756811611904,0.284,4378.3,4378.2,44.0078]
[1756811612206,0.284,4378.3,4378.2,44.2388]
[1756811612702,0.284,4378.3,4378.2,3.2078]
[1756811612904,0.6688,4378.3,4378.2,3.4388]
[1756811614401,0.6688,4378.3,4378.2,3.6061]
[1756811614802,0.6688,4378.3,4378.2,3.7734]
[1756811615004,0.6688,4378.3,4378.2,3.5424]
[1756811615205,0.4784,4378.3,4378.2,3.878]
[1756811615399,0.284,4378.3,4378.2,3.878]
[1756811617006,0.4784,4378.3,4378.2,3.7734]
[1756811617199,0.4784,4378.3,4378.2,3.5424]
[1756811617405,0.4784,4378.3,4378.2,3.7734]
[1756811617406,0.6688,4378.3,4378.2,3.7734]
[1756811617905,0.284,4378.3,4378.2,3.878]
[1756811618306,0.4784,4378.3,4378.2,3.7734]
[1756811619607,0.284,4378.3,4378.2,3.6485]
[1756811619812,0.284,4378.3,4378.2,3.8795]
[1756811620514,0.493,4378.3,4378.2,3.8795]
[1756811621014,0.493,4378.3,4378.2,3.6485]
[1756811621216,0.493,4378.3,4378.2,3.8795]
[1756811621403,0.493,4378.3,4378.2,3.6485]
[1756811621715,0.284,4378.3,4378.2,3.8795]
[1756811622015,0.4001,4378.5,4378.4,0.4455]
[1756811622212,0.6091,4378.5,4378.4,0.3394]
[1756811622416,0.4001,4378.5,4378.4,0.6765]
[1756811623517,0.6091,4378.5,4378.4,0.6765]
[1756811624811,0.1141,4378.5,4378.4,0.6765]
[1756811625818,0.4001,4378.5,4378.4,0.6765]
[1756811629413,0.6091,4378.5,4378.4,0.6765]
[1756811629619,0.4001,4378.5,4378.4,0.6765]
[1756811630220,0.008,4378.5,4378.4,4.90489]
[1756811630524,3.2078,4380.2,4378.4,4.79879]
[1756811630525,0.286,4379.9,4378.4,4.79879]
[1756811630728,0.209,4379.9,4379.3,3.2078]
[1756811631019,3.2078,4380.2,4379.3,3.2078]
[1756811631020,0.495,4379.8,4379.4,0.231]
[1756811631817,0.524,4379.5,4379.4,0.231]
[1756811632020,0.81,4379.5,4379.4,0.231]
[1756811634928,0.81,4379.5,4379.3,3.2078]
[1756811635127,0.286,4379.4,4379.3,3.2078]
[1756811635329,0.6955,4379.4,4379.3,3.4388]
[1756811635627,0.495,4379.4,4379.3,3.4388]
[1756811637633,0.6955,4379.4,4379.3,3.4388]
[1756811638121,0.6955,4379.4,4379.3,3.2078]
[1756811638326,0.6955,4379.4,4379.3,3.4388]
[1756811642030,0.286,4379.4,4379.3,3.4388]
[1756811642423,0.286,4379.9,4379.3,3.4388]
[1756811642626,0.495,4379.9,4379.3,3.4388]
[1756811642835,0.286,4379.9,4379.3,3.4388]
[1756811643232,0.209,4379.8,4379.3,3.4388]
[1756811643430,0.286,4379.6,4379.3,3.4388]
[1756811643726,0.495,4379.8,4379.3,3.4388]
[1756811643935,0.116,4380.0,4379.3,3.4388]
[1756811644231,0.209,4379.9,4379.3,3.4388]
[1756811644427,0.286,4379.9,4379.3,3.4388]
[1756811644629,0.116,4380.0,4379.3,3.4388]
[1756811644833,0.286,4379.9,4379.3,3.4388]
[1756811645137,0.116,4380.0,4379.4,40.8]
[1756811645334,0.286,4379.9,4379.5,0.231]
[1756811645637,0.495,4379.9,4379.5,0.231]
[1756811647933,0.495,4379.9,4379.8,3.2078]
[1756811647934,0.286,4379.9,4379.8,3.2078]
[1756811648141,0.286,4379.9,4379.8,3.4388]
[1756811648329,0.6955,4379.9,4379.8,3.4388]
[1756811650132,0.6955,4379.9,4379.8,0.231]
[1756811650747,0.6955,4379.9,4379.4,40.8]
[1756811651037,0.4192,4379.5,4379.4,40.8]
[1756811651339,0.4192,4379.5,4379.4,41.031]
[1756811651528,0.6144,4379.5,4379.4,0.231]
[1756811651732,0.6144,4379.5,4379.3,3.2078]
[1756811651733,0.2959,4379.4,4379.3,3.2078]
[1756811652040,0.2959,4379.4,4379.3,3.4388]
[1756811652445,0.4911,4379.9,4379.3,3.4388]
[1756811652639,0.2959,4379.9,4379.8,3.2078]
[1756811652839,0.2959,4379.9,4379.8,3.4388]
[1756811653135,0.4911,4379.9,4379.8,3.4388]
[1756811653342,0.6888,4379.9,4379.8,3.4388]
[1756811654033,0.2959,4379.9,4379.8,3.4388]
[1756811657445,0.4911,4379.9,4379.8,3.4388]
[1756811657750,0.6888,4379.9,4379.8,3.4388]
[1756811659146,0.6888,4379.9,4379.8,3.2078]
[1756811659348,0.6888,4379.9,4379.8,3.4388]
[1756811665147,0.6888,4379.9,4379.8,3.2078]
[1756811665343,0.6888,4379.9,4379.8,3.4388]
[1756811667145,0.4911,4379.9,4379.8,3.4388]
[1756811667352,0.2959,4379.9,4379.8,3.4388]
[1756811670351,0.4911,4379.9,4379.8,3.4388]
[1756811670549,0.2959,4379.9,4379.8,3.4388]
[1756811678260,0.1233,4379.0,4377.9,3.2078]
[1756811678453,0.1952,4378.5,4377.9,3.2078]
[1756811678757,0.58510671,4378.4,4378.1,0.231]
[1756811678954,0.2957,4378.7,4378.1,0.231]
[1756811679154,0.2957,4378.9,4378.1,0.231]
[1756811679453,0.3183,4379.0,4378.1,0.231]
[1756811679454,0.4907,4378.7,4378.1,0.231]
[1756811679757,0.2957,4378.6,4378.2,0.231]
[1756811680057,0.4907,4378.6,4378.2,0.231]
[1756811683353,0.4907,4378.6,4378.0,42.46666667]
[1756811683559,0.195,4378.2,4378.1,0.231]
[1756811683863,0.4907,4378.2,4378.1,0.231]
[1756811685371,0.2957,4378.1,4378.0,42.46666667]
[1756811685666,0.2957,4378.1,4378.0,42.69766667]
[1756811688868,0.2957,4378.1,4378.0,42.46666667]
[1756811689072,0.2957,4378.1,4378.0,42.69766667]
[1756811689772,0.2957,4378.1,4378.0,42.46666667]
[1756811690171,0.2957,4378.1,4378.0,42.69766667]
[1756811691272,0.6952,4378.1,4378.0,1.89766667]
[1756811694074,0.6952,4378.1,4378.0,1.66666667]
[1756811694270,0.6952,4378.1,4378.0,1.89766667]
[1756811698181,0.2957,4378.1,4378.0,1.89766667]
[1756811698780,0.4098,4378.3,4378.0,1.89766667]
[1756811699080,0.2957,4378.2,4378.0,1.89766667]
[1756811699270,0.1141,4378.3,4378.0,1.89766667]
[1756811699474,0.3091,4378.3,4378.0,1.89766667]
[1756811699675,0.1141,4378.3,4378.0,1.89766667]
[1756811699976,0.2957,4378.1,4378.0,1.89766667]
[1756811701782,0.6952,4378.1,4378.0,1.89766667]
[1756811703382,0.4907,4378.1,4378.0,1.89766667]
[1756811704887,0.2957,4378.1,4378.0,1.89766667]
[1756811705082,0.1141,4378.3,4378.0,1.89766667]
[1756811705675,0.4098,4378.3,4378.0,1.89766667]
[1756811705881,0.1141,4378.3,4378.0,1.89766667]
[1756811706089,0.3091,4378.3,4378.0,1.89766667]
[1756811706287,0.2957,4378.2,4378.0,1.89766667]
[1756811706482,0.1141,4378.3,4378.0,1.89766667]
[1756811706788,0.2957,4378.2,4378.0,1.89766667]
[1756811706984,0.2957,4378.2,4378.0,1.66666667]
[1756811707181,0.4907,4378.1,4378.0,1.66666667]
[1756811707487,0.4907,4378.1,4378.0,1.89766667]
[1756811708182,0.2957,4378.1,4378.0,1.89766667]
[1756811709588,0.1141,4378.3,4378.0,1.89766667]
[1756811710092,0.1141,4378.3,4378.1,4.22841]
[1756811710390,0.1141,4378.3,4378.2,0.231]
[1756811710589,0.1141,4378.3,4378.2,41.2594]
[1756811711486,0.1141,4378.3,4378.2,41.031]
[1756811715285,0.4166,4378.3,4378.2,40.8]
[1756811715488,0.4166,4378.3,4378.2,41.031]
[1756811716397,0.4166,4378.3,4378.2,40.8]
[1756811716586,0.4166,4378.3,4378.2,41.031]
[1756811716790,0.4166,4378.3,4378.2,40.8]
[1756811717391,0.4166,4378.3,4378.2,41.031]
[1756811719397,0.3025,4378.3,4378.2,41.031]
[1756811719598,0.3025,4378.3,4378.2,40.8]
[1756811719791,0.3025,4378.3,4378.2,0.231]
[1756811719792,0.5103,4378.3,4378.2,0.231]
[1756811719992,0.3025,4378.3,4378.2,0.231]
[1756811720193,0.5103,4378.3,4378.2,0.231]
[1756811720398,0.5103,4378.3,4378.2,41.031]
[1756811721099,0.5103,4378.3,4378.2,40.8]
[1756811721500,0.5103,4378.3,4378.2,41.031]
[1756811722988,0.5103,4378.3,4378.2,40.8]
[1756811723193,0.5103,4378.3,4378.2,41.031]
[1756811723700,0.5103,4378.3,4378.2,40.8]
[1756811723900,0.5103,4378.3,4378.2,41.031]
[1756811724495,0.708,4378.1,4378.0,1.66666667]
[1756811724798,0.708,4378.1,4378.0,1.89766667]
[1756811725993,0.708,4378.1,4378.0,1.66666667]
[1756811726195,0.708,4378.1,4378.0,1.89766667]
[1756811727601,0.708,4378.1,4378.0,1.66666667]
[1756811728103,0.708,4378.1,4378.0,1.89766667]
[1756811729496,0.3025,4378.1,4378.0,1.89766667]
[1756811730504,0.5103,4378.1,4378.0,1.89766667]
[1756811734006,0.3025,4378.1,4378.0,1.89766667]
[1756811734307,0.5103,4378.1,4378.0,1.89766667]
[1756811734699,0.3025,4378.1,4378.0,1.89766667]
[1756811735806,0.1141,4378.3,4378.0,0.89766667]
[1756811736302,0.1141,4378.3,4378.1,40.8]
[1756811736498,0.1141,4378.3,4378.2,0.231]
[1756811736700,0.3025,4379.2,4378.2,4.64207]
[1756811736898,0.3025,4379.8,4378.2,0.64207]
[1756811737198,0.2078,4379.6,4379.1,3.2078]
[1756811737403,0.5103,4379.5,4379.2,0.231]
[1756811738708,0.708,4379.3,4379.2,0.231]
[1756811739107,0.1167,4379.5,4378.9,32.895]
[1756811739403,0.4883,4379.0,4378.9,32.895]
[1756811739604,0.4883,4379.0,4378.9,33.126]
[1756811741708,0.2895,4379.0,4378.9,33.126]
[1756811741910,0.1167,4379.5,4378.9,33.126]
[1756811742112,0.2895,4379.4,4379.3,3.2078]
[1756811742413,0.4883,4379.4,4379.3,3.4388]
[1756811743814,0.68,4379.4,4379.3,3.2078]
[1756811744113,0.68,4379.4,4379.3,3.4388]
[1756811745712,0.68,4379.4,4379.3,3.2078]
[1756811745912,0.68,4379.4,4379.3,3.4388]
[1756811747211,0.68,4379.4,4379.3,3.2078]
[1756811747512,0.0081,4379.9,4379.3,7.4388]
[1756811747710,0.1238,4381.5,4379.8,3.2078]
[1756811747711,0.13980003,4380.4,4379.8,3.2078]
[1756811748014,0.5143,4381.0,4380.9,0.2034]
[1756811748218,0.5143,4381.0,4380.9,0.4354]
[1756811748807,0.1238,4381.5,4380.9,0.6451]
[1756811749511,0.1238,4382.0,4381.0,0.1487]
[1756811749708,0.8018819,4381.9,4381.1,0.231]
[1756811749909,0.2895,4381.8,4381.1,0.231]
[1756811750408,0.68,4381.8,4381.7,0.2034]
[1756811750717,0.68,4381.8,4381.7,0.4354]
[1756811751609,0.68,4381.8,4381.2,0.1487]
[1756811751811,0.68,4381.8,4381.3,0.231]
[1756811752021,0.68,4381.8,4380.8,3.3565]
[1756811752022,0.2895,4381.7,4380.8,3.3565]
[1756811752215,0.1988,4381.0,4380.9,0.6441]
[1756811752416,0.4883,4381.0,4380.9,0.7928]
[1756811752615,0.2895,4381.0,4380.9,0.7928]
[1756811752910,0.2895,4381.0,4380.9,41.5928]
[1756811755615,0.1238,4382.0,4380.9,41.5928]
[1756811755918,0.2895,4381.5,4381.4,3.7696]
[1756811756114,0.2895,4381.5,4381.4,4.0006]
[1756811758217,0.1238,4382.0,4381.4,3.8519]
[1756811758424,0.4883,4381.9,4381.8,0.4131]
[1756811758622,0.4883,4381.9,4381.8,0.6441]
[1756811759618,0.2895,4382.0,4381.9,0.5618]
[1756811759820,0.4883,4382.0,4381.9,4.0016]
[1756811760125,0.4883,4382.0,4381.9,44.6529]
[1756811760318,0.4883,4382.0,4381.9,44.8016]
[1756811760618,0.2895,4382.9,4382.0,0.1487]
[1756811761128,0.2895,4382.9,4382.1,0.232]
[1756811761822,0.1988,4382.3,4382.2,0.4131]
[1756811762129,0.68,4382.3,4382.2,0.4131]
[1756811763323,0.68,4382.3,4382.2,0.6451]
[1756811763719,0.68,4382.3,4382.2,0.4131]
[1756811763921,0.68,4382.3,4382.2,0.6451]
[1756811764121,0.68,4382.3,4382.2,0.4131]
[1756811764322,0.68,4382.3,4382.2,0.6451]
[1756811765819,0.1238,4382.0,4381.3,3.2078]
[1756811766015,0.1238,4382.0,4381.3,3.6209]
[1756811766016,0.4883,4381.4,4381.3,3.6209]
[1756811766220,0.4883,4381.4,4381.3,3.8519]
[1756811766422,0.4883,4381.4,4381.3,44.7999]
[1756811766620,0.2895,4381.4,4381.3,44.7999]
[1756811766821,0.2895,4381.9,4381.3,44.6519]
[1756811767017,0.4883,4381.9,4381.8,3.6209]
[1756811767222,0.4883,4381.9,4381.8,3.8529]
[1756811767730,0.2895,4381.9,4381.8,3.8529]
[1756811768030,0.1238,4382.5,4381.8,4.0009]
[1756811768325,0.1988,4381.9,4381.8,3.8529]
[1756811768519,0.68,4381.9,4381.8,3.8529]
[1756811769331,0.68,4381.9,4381.8,3.6209]
[1756811769527,0.68,4381.9,4381.8,3.4398]
[1756811769824,0.68,4381.9,4381.8,3.8442]
[1756811772126,0.2991,4382.8,4381.8,3.8442]
[1756811772322,0.2991,4382.8,4382.7,0.2031]
[1756811772323,0.7035,4382.8,4382.7,0.2031]
[1756811772524,0.7035,4382.8,4382.7,0.4351]
[1756811772731,0.7035,4382.8,4382.7,0.232]
[1756811774133,0.7035,4382.8,4382.7,0.4351]
[1756811775432,1.27698076,4382.8,4382.7,0.4351]
[1756811775836,0.7035,4382.8,4382.7,0.232]
[1756811776430,1.27747876,4382.8,4382.7,0.232]
[1756811777634,1.27747876,4382.8,4382.7,0.4351]
[1756811778038,1.27747876,4382.8,4382.7,0.232]
[1756811780436,1.27747876,4382.8,4382.7,0.4351]
[1756811781839,1.27747876,4382.8,4382.7,0.232]
[1756811782140,1.27747876,4382.8,4382.3,3.2078]
[1756811782341,0.7035,4382.4,4382.3,3.4109]
[1756811782640,0.7035,4382.4,4382.3,3.6419]
[1756811783036,0.7035,4382.4,4382.3,3.2078]
[1756811783232,0.1992,4381.8,4381.7,3.2078]
[1756811783436,0.7035,4381.8,4381.7,3.4109]
[1756811783637,0.7035,4381.8,4381.7,3.2078]
[1756811783838,0.7035,4381.8,4381.7,3.4388]
[1756811784439,0.7035,4381.8,4381.7,3.2078]
[1756811784744,0.7035,4381.8,4381.7,3.6419]
[1756811784936,0.7035,4381.8,4381.7,3.8432]
[1756811785131,0.4983,4381.8,4381.7,3.9917]
[1756811786038,0.1165,4382.5,4381.7,3.9917]
[1756811786245,1.07332342,4382.4,4382.3,0.4044]
[1756811786442,1.27852342,4382.4,4382.3,0.4341]
[1756811786746,0.4983,4381.8,4381.7,3.6122]
[1756811786937,0.4983,4381.8,4381.7,3.8432]
[1756811787137,0.4983,4381.8,4381.7,3.9917]
[1756811787846,0.2991,4381.8,4381.7,3.9917]
[1756811788647,0.2991,4382.4,4381.7,3.6122]
[1756811788847,0.97975685,4382.3,4382.2,0.2031]
[1756811789146,0.97975685,4382.3,4382.2,0.4341]
[1756811789348,1.27885685,4382.3,4382.2,0.4341]
[1756811790244,1.27885685,4382.3,4381.8,0.1485]
[1756811790245,0.7035,4381.8,4381.7,3.6122]
[1756811790546,0.7035,4381.8,4381.7,3.6419]
[1756811791446,0.7035,4381.8,4381.7,3.8432]
[1756811792951,0.2991,4381.8,4381.7,3.9917]
[1756811793854,0.7035,4381.8,4381.7,3.8432]
[1756811794153,0.4983,4381.8,4381.7,3.9917]
[1756811794453,0.2991,4381.8,4381.7,3.9917]
[1756811795150,0.7035,4381.8,4381.7,3.6122]
[1756811795345,0.7035,4381.8,4381.7,3.8432]
[1756811796453,0.7035,4381.8,4381.7,3.2078]
[1756811796653,0.7035,4381.8,4381.7,3.4388]
[1756811796955,0.7035,4381.8,4381.7,3.2078]
[1756811797155,0.7035,4381.8,4381.7,3.4388]
[1756811797954,0.7035,4381.8,4381.7,3.2078]
[1756811798156,0.7035,4381.8,4381.7,3.4388]
[1756811798347,0.7035,4381.8,4381.7,3.2078]
[1756811798548,0.7035,4381.8,4381.7,3.4388]
[1756811799757,0.7035,4381.8,4381.7,3.6419]
[1756811802055,0.7035,4381.8,4381.7,3.6404]
[1756811802263,0.4983,4381.8,4381.7,3.9919]
[1756811803756,0.7012,4381.8,4381.7,3.2078]
[1756811803964,0.7012,4381.8,4381.7,3.4388]
[1756811804254,0.7012,4381.8,4381.7,3.8441]
[1756811804459,0.7012,4381.8,4381.7,3.9919]
[1756811804666,0.4983,4381.8,4381.7,3.9919]
[1756811805367,0.7012,4381.8,4381.7,3.4094]
[1756811805668,0.7012,4381.8,4381.7,3.6404]
[1756811806167,0.7012,4381.8,4381.7,3.8441]
[1756811806470,0.7012,4381.8,4381.7,3.9919]
[1756811806972,0.2991,4381.8,4381.7,3.9919]
[1756811807962,0.3067,4382.1,4382.0,0.4053]
[1756811808170,0.3067,4382.1,4382.0,0.7841]
[1756811808469,5.344,4382.2,4382.1,0.5531]
[1756811808971,0.3067,4382.7,4382.6,0.4053]
[1756811809166,0.3067,4382.7,4382.6,0.7841]
[1756811809571,0.3067,4382.7,4382.6,41.5841]
[1756811810067,3.5145,4382.9,4382.7,0.1478]
[1756811810372,3.4113,4383.4,4383.3,0.4053]
[1756811810570,3.6142,4383.4,4383.3,0.6363]
[1756811810873,3.9209,4383.4,4383.3,0.6363]
[1756811813775,3.9209,4383.4,4382.8,3.2078]
[1756811813776,0.7131,4382.9,4382.8,3.2078]
[1756811814072,0.7131,4382.9,4382.8,0.231]
[1756811814874,0.7131,4382.9,4382.8,0.4326]
[1756811815268,0.7131,4382.9,4382.8,0.231]
[1756811817380,0.7131,4382.9,4382.8,0.232]
[1756811818273,0.7131,4382.9,4382.8,0.6373]
[1756811818881,0.3067,4382.9,4382.8,0.7851]
[1756811819080,0.5102,4382.9,4382.8,0.6373]
[1756811820378,0.7131,4382.9,4382.8,0.6373]
[1756811823076,0.3067,4382.8,4382.1,40.948]
[1756811823282,0.7131,4382.3,4382.2,0.4326]
[1756811823484,0.7131,4382.3,4382.2,0.6363]
[1756811824086,0.5102,4382.3,4382.2,0.7843]
[1756811824884,0.3067,4382.3,4382.2,0.7843]
[1756811826286,0.7131,4382.3,4382.2,0.4053]
[1756811826487,0.7131,4382.3,4382.2,0.6363]
[1756811826990,0.5102,4382.9,4382.8,0.4053]
[1756811827182,0.7131,4382.9,4382.8,0.6363]
[1756811827383,0.3067,4382.9,4382.8,0.7843]
[1756811828183,0.5102,4382.9,4382.8,0.6363]
[1756811828582,0.5102,4382.9,4382.8,0.7843]
[1756811829287,0.3067,4382.9,4382.8,0.7843]
[1756811829478,0.1178,4384.5,4382.9,0.1492]
[1756811829679,0.2855,4383.4,4383.3,3.587]
[1756811829985,0.2855,4383.4,4383.3,3.9672]
[1756811830183,0.2855,4383.4,4383.3,44.7672]
[1756811830587,0.2855,4383.4,4383.3,44.618]
[1756811831685,0.2855,4383.4,4383.3,44.5362]
[1756811831886,0.2855,4383.4,4383.3,44.7672]
[1756811832690,0.2855,4383.4,4383.3,44.618]
[1756811832888,0.2855,4383.4,4383.3,44.387]
[1756811833190,0.2855,4383.4,4383.3,44.2388]
[1756811834692,0.2855,4383.4,4383.3,44.388]
[1756811834992,0.2855,4383.4,4383.3,44.2388]
[1756811836094,0.6815,4383.4,4383.3,3.6281]
[1756811836287,0.6815,4383.4,4383.3,3.818]
[1756811836488,0.6815,4383.4,4383.3,3.587]
[1756811836693,0.6815,4383.4,4383.3,3.818]
[1756811837190,0.6815,4383.4,4383.3,44.618]
[1756811839795,0.6815,4383.4,4383.3,3.818]
[1756811840389,0.6815,4383.4,4383.3,3.587]
[1756811840591,0.6815,4383.4,4383.3,0.6102]
[1756811842498,0.6815,4383.4,4383.3,0.1893]
[1756811842698,0.6815,4383.4,4383.3,0.4203]
[1756811844101,0.6815,4383.4,4383.3,0.6102]
[1756811845104,0.6815,4383.4,4383.3,3.818]
[1756811845404,0.2855,4383.4,4383.3,3.9672]
[1756811847000,0.4806,4383.4,4383.3,3.818]
[1756811848704,0.4806,4383.4,4383.3,3.9672]
[1756811849802,0.2855,4383.4,4383.3,3.9672]
[1756811850004,0.4806,4383.4,4383.3,3.818]
[1756811850202,0.396,4383.4,4382.6,3.2078]
[1756811850406,0.2855,4383.3,4382.7,0.231]
[1756811850608,0.4806,4382.8,4382.7,0.6102]